[Event "SVK ECo-C Extraliga 2018-19"]
[Site "Slovakia"]
[Date "2019.03.09"]
[Round "7.6"]
[White "Bagi, Mate"]
[Black "Vojtek, Vladimir"]
[Result "0-1"]
[ECO "B01"]
[WhiteElo "2453"]
[BlackElo "2313"]
[Annotator "RC"]
[PlyCount "136"]
[EventDate "2018.11.10"]
[EventType "team-tourn"]
[EventCountry "SVK"]
[SourceTitle "playchess.com"]
[Source "ChessBase"]
[SourceQuality "1"]
[WhiteTeam "Streda"]
[BlackTeam "Dubnica"]
[TimeControl "40/5400+30:1800+30"]

1. e4 {[%emt 0:00:00]} d5 {[%emt 0:00:00]} 2. exd5 {[%emt 0:00:00]} Qxd5 {[%emt 0:00:00]} 3. Nc3 {[%emt 0:00:25]} Qa5 {[%emt 0:00:00]} 4. d4 {[%emt 0:01:15]} Nf6 {[%emt 0:00:00]} 5. Nf3 {[%emt 0:01:00]} Nc6 {[%emt 0:00:07]} 6. Bd2 {[%emt 0:07:39]} a6 {[%emt 0:01:21]} 7. h3 {[%emt 0:12:34]} e6 {[%emt 0:08:53]} 8. Bc4 {[%emt 0:09:38]} Qb6 {[%emt 0:02:46]} 9. Qe2 {[%emt 0:09:01]} Nxd4 {[%emt 0:12:09]} 10. Nxd4 {[%emt 0:00:11]} Qxd4 {[%emt 0:00:02]} 11. O-O-O {[%emt 0:00:52]} Qc5 {[%emt 0:12:10]} 12. g4 {[%emt 0:09:28]} b5 {[%emt 0:08:02]} 13. Bb3 {[%emt 0:00:29]} Bb7 {[%emt 0:07:49]} 14. Be3 {[%emt 0:06:38]} Qc6 {[%emt 0:02:53]} 15. g5 {[%emt 0:03:29]} Ne4 {[%emt 0:06:23]} 16. Nxe4 {[%emt 0:04:20]} Qxe4 {[%emt 0:00:08]} 17. Qd2 {[%emt 0:02:35]} Bd6 {[%emt 0:01:34]} 18. Qc3 {[%emt 0:03:29]} Qe5 {[%emt 0:06:37]} 19. Qxe5 {[%emt 0:03:43]} Bxe5 {[%emt 0:00:03]} 20. Rhe1 {[%emt 0:00:09]} Bf3 {[%emt 0:07:57]} 21. Rd2 {[%emt 0:02:33]} Rd8 {[%emt 0:03:11]} 22. Rxd8+ {[%emt 0:01:41]} Kxd8 {[%emt 0:00:05]} 23. c4 {[%emt 0:00:19]} Ke7 {[%emt 0:02:25]} 24. a4 {[%emt 0:03:55]} bxa4 {[%emt 0:05:57]} 25. Bxa4 {[%emt 0:00:08]} Rb8 {[%emt 0:00:20]} 26. Bc5+ {[%emt 0:04:00]} Bd6 {[%emt 0:00:07]} 27. Be3 {[%emt 0:00:24]} Rb4 {[%emt 0:02:47]} 28. b3 {[%emt 0:00:08]} Rb8 {[%emt 0:00:57]} 29. h4 {[%emt 0:02:04]} Bb4 {[%emt 0:02:02]} 30. Rg1 {[%emt 0:01:57]} Rd8 {[%emt 0:01:04]} 31. c5 {[%emt 0:02:48]} Be4 {[%emt 0:01:40]} 32. Kb2 {[%emt 0:00:13]} Bd2 {[%emt 0:01:35]} 33. Rg4 {[%emt 0:00:37]} Bf5 {[%emt 0:01:09]} 34. Rc4 {[%emt 0:00:51]} Bd3 {[%emt 0:02:04]} 35. Rg4 {[%emt 0:00:46]} Be2 {[%emt 0:00:26]} 36. Rf4 {[%emt 0:01:41]} Bxe3 {[%emt 0:00:47]} 37. fxe3 {[%emt 0:00:05]} Rd2+ {[%emt 0:00:32]} 38. Ka3 {[%emt 0:01:48]} Rd3 {[%emt 0:00:37]} 39. Rb4 {[%emt 0:00:43]} Rc3 {[%emt 0:00:44]} 40. Rd4 {[%emt 0:00:46]} Rd3 {[%emt 0:01:00]} 41. Rb4 {[%emt 0:05:55]} Rd5 {[%emt 0:09:16]} 42. Rb8 {[%emt 0:02:14]} Rxc5 {[%emt 0:00:33]} 43. Kb4 {[%emt 0:02:13]} Rc1 {[%emt 0:01:34]} 44. Re8+ {[%emt 0:00:26]} Kd6 {[%emt 0:00:07]} 45. Rd8+ {[%emt 0:00:17]} Ke5 {[%emt 0:00:28]} 46. Rd7 {[%emt 0:00:04]} Bh5 {[%emt 0:11:07]} 47. Ka5 {[%emt 0:00:28]} Ke4 {[%emt 0:01:14]} 48. Kxa6 {[%emt 0:01:11]} Kxe3 {[%emt 0:00:36]} 49. Re7 {[%emt 0:00:58]} c5 {[%emt 0:06:10]} 50. Bb5 {[%emt 0:04:36]} Rh1 {[%emt 0:01:05]} 51. Kb6 {[%emt 0:01:06]} Rxh4 {[%emt 0:00:10]} 52. Kxc5 {[%emt 0:00:56]} Rg4 {[%emt 0:00:10]} 53. b4 {[%emt 0:01:09]} Rxg5+ {[%emt 0:00:07]} 54. Kb6 {[%emt 0:00:06]} Rg4 {[%emt 0:01:22]} 55. Kc5 {[%emt 0:00:15]} Rg5+ {[%emt 0:00:46]} 56. Kb6 {[%emt 0:00:06]} Rg1 {[%emt 0:00:19]} 57. Bc6 {[%emt 0:01:02]} g5 {[%emt 0:00:15]} 58. b5 {[%emt 0:01:58]} g4 {[%emt 0:00:16]} 59. Kc7 {[%emt 0:02:14]} g3 {[%emt 0:01:34]} 60. b6 {[%emt 0:00:15]} Rc1 {[%emt 0:00:43]} 61. b7 {[%emt 0:02:22]} Rxc6+ {[%emt 0:00:21]} 62. Kxc6 {[%emt 0:00:10]} Bf3+ {[%emt 0:00:05]} 63. Kd6 {[%emt 0:01:12]} Bxb7 {[%emt 0:00:09]} 64. Rxb7 {[%emt 0:00:07]} g2 {[%emt 0:00:20]} 65. Rb3+ {[%emt 0:00:45]} Kf2 {[%emt 0:00:06]} 66. Rb2+ {[%emt 0:00:05]} Kg3 {[%emt 0:00:05]} 67. Rb3+ {[%emt 0:01:13]} Kh2 {[%emt 0:00:05]} 68. Rb2 {[%emt 0:00:07]} Kh1 {[%emt 0:00:04]} 0-1

[Event "SVK ECo-C Extraliga 2018-19"]
[Site "Slovakia"]
[Date "2019.03.09"]
[Round "7.6"]
[White "Pcola, Pavol"]
[Black "Schwarz, Dusan"]
[Result "1-0"]
[ECO "A20"]
[WhiteElo "2381"]
[BlackElo "2331"]
[Annotator "NA"]
[PlyCount "83"]
[EventDate "2018.11.10"]
[EventType "team-tourn"]
[EventCountry "SVK"]
[SourceTitle "playchess.com"]
[Source "ChessBase"]
[SourceQuality "1"]
[WhiteTeam "Snina"]
[BlackTeam "Modra"]
[TimeControl "40/5400+30:1800+30"]

1. c4 {[%emt 0:00:00]} e5 {[%emt 0:00:00]} 2. g3 {[%emt 0:00:00]} Nf6 {[%emt 0:00:12]} 3. Bg2 {[%emt 0:00:00]} Nc6 {[%emt 0:00:38]} 4. Nc3 {[%emt 0:00:00]} Bc5 {[%emt 0:00:36]} 5. a3 {[%emt 0:00:00]} a5 {[%emt 0:03:12]} 6. e3 {[%emt 0:07:48]} O-O {[%emt 0:05:45]} 7. Nge2 {[%emt 0:00:09]} Re8 {[%emt 0:00:52]} 8. O-O {[%emt 0:00:39]} d6 {[%emt 0:05:52]} 9. d4 {[%emt 0:00:56]} exd4 {[%emt 0:05:17]} 10. exd4 {[%emt 0:00:20]} Ba7 {[%emt 0:01:22]} 11. h3 {[%emt 0:11:25]} Bf5 {[%emt 0:04:06]} 12. g4 {[%emt 0:02:25]} Bg6 {[%emt 0:18:05]} 13. Bg5 {[%emt 0:27:51]} h6 {[%emt 0:00:23]} 14. Bh4 {[%emt 0:00:22]} Bh7 {[%emt 0:00:40]} 15. f4 {[%emt 0:02:14]} Qd7 {[%emt 0:26:36]} 16. Bxf6 {[%emt 0:00:49]} gxf6 {[%emt 0:00:06]} 17. f5 {[%emt 0:07:36]} Kg7 {[%emt 0:00:58]} 18. Kh2 {[%emt 0:07:24]} Re3 {[%emt 0:06:29]} 19. Nd5 {[%emt 0:03:46]} Rxe2 {[%emt 0:03:39]} 20. Qxe2 {[%emt 0:00:13]} Bxd4 {[%emt 0:00:32]} 21. Rae1 {[%emt 0:01:08]} Be5+ {[%emt 0:00:55]} 22. Kh1 {[%emt 0:00:28]} h5 {[%emt 0:00:51]} 23. Nf4 {[%emt 0:08:44]} hxg4 {[%emt 0:01:12]} 24. hxg4 {[%emt 0:00:26]} Rh8 {[%emt 0:01:52]} 25. Nh5+ {[%emt 0:02:42]} Kf8 {[%emt 0:00:21]} 26. Qd2 {[%emt 0:06:55]} Bg6 {[%emt 0:02:42]} 27. fxg6 {[%emt 0:00:19]} fxg6 {[%emt 0:00:10]} 28. Qg5 {[%emt 0:05:28]} gxh5 {[%emt 0:07:54]} 29. Rxf6+ {[%emt 0:01:18]} Ke8 {[%emt 0:00:51]} 30. gxh5 {[%emt 0:00:34]} Qe7 {[%emt 0:01:14]} 31. Rg6 {[%emt 0:00:51]} Qxg5 {[%emt 0:00:31]} 32. Bxc6+ {[%emt 0:00:11]} bxc6 {[%emt 0:00:18]} 33. Rxg5 {[%emt 0:00:06]} Kf7 {[%emt 0:01:04]} 34. Rf1+ {[%emt 0:01:03]} Ke6 {[%emt 0:00:38]} 35. b3 {[%emt 0:00:41]} a4 {[%emt 0:00:52]} 36. bxa4 {[%emt 0:00:47]} c5 {[%emt 0:00:21]} 37. Kg2 {[%emt 0:00:21]} Ra8 {[%emt 0:00:17]} 38. h6 {[%emt 0:00:46]} Rxa4 {[%emt 0:00:52]} 39. h7 {[%emt 0:00:08]} Bd4 {[%emt 0:00:29]} 40. Rg6+ {[%emt 0:01:23]} Kd7 {[%emt 0:00:28]} 41. Rf7+ {[%emt 0:30:57]} Kc6 {[%emt 0:00:55]} 42. Rgg7 {[%emt 0:00:00] Kd5} 1-0

[Event "SVK ECo-C Extraliga 2018-19"]
[Site "Slovakia"]
[Date "2019.03.09"]
[Round "7.6"]
[White "Rastislav, FM Briestensky"]
[Black "Martin, FM Jurcik"]
[Result "1-0"]
[ECO "D05"]
[WhiteElo "2345"]
[BlackElo "2354"]
[Annotator "ChessBase"]
[PlyCount "149"]
[EventDate "2018.11.10"]
[EventType "team-tourn"]
[EventCountry "SVK"]
[SourceTitle "playchess.com"]
[Source "ChessBase"]
[SourceQuality "1"]
[WhiteTeam "2"]
[BlackTeam "1"]
[TimeControl "40/5400+30:1800+30"]

1. Nf3 {[%emt 0:00:00]} d5 {[%emt 0:00:23]} 2. d4 {[%emt 0:00:00]} Nf6 {[%emt 0:00:55]} 3. e3 {[%emt 0:02:23]} e6 {[%emt 0:02:08]} 4. Bd3 {[%emt 0:02:07]} c5 {[%emt 0:01:40]} 5. c3 {[%emt 0:02:07]} Nbd7 {[%emt 0:01:24]} 6. O-O {[%emt 0:00:42]} Bd6 {[%emt 0:01:28]} 7. Nbd2 {[%emt 0:00:20]} O-O {[%emt 0:01:29]} 8. e4 {[%emt 0:03:44]} cxd4 9. cxd4 {[%emt 0:02:35]} e5 {[%emt 0:10:18]} 10. exd5 {[%emt 0:05:31]} exd4 {[%emt 0:00:34]} 11. Ne4 {[%emt 0:10:09]} Nxe4 {[%emt 0:14:48]} 12. Bxe4 {[%emt 0:00:09]} Nf6 {[%emt 0:00:18]} 13. Bg5 {[%emt 0:14:08]} h6 {[%emt 0:05:09]} 14. Bxf6 {[%emt 0:00:28]} Qxf6 {[%emt 0:00:37]} 15. Qxd4 {[%emt 0:01:14]} Qxd4 {[%emt 0:01:23]} 16. Nxd4 {[%emt 0:00:19]} Bd7 {[%emt 0:09:38]} 17. Rfd1 {[%emt 0:03:05]} g6 {[%emt 0:03:41]} 18. Rac1 {[%emt 0:04:00]} Rfe8 {[%emt 0:01:52]} 19. Bf3 {[%emt 0:06:21]} Rac8 {[%emt 0:07:57]} 20. Rxc8 Rxc8 {[%emt 0:00:11]} 21. h3 {[%emt 0:13:49]} Be5 {[%emt 0:09:45]} 22. b3 {[%emt 0:03:24]} Kg7 {[%emt 0:10:28]} 23. Kf1 {[%emt 0:10:57]} Re8 {[%emt 0:11:03]} 24. Be2 {[%emt 0:04:39]} a6 {[%emt 0:01:19]} 25. Bg4 {[%emt 0:02:22]} f5 {[%emt 0:01:15]} 26. Bf3 {[%emt 0:00:21]} Bd6 {[%emt 0:02:01]} 27. Nc6 {[%emt 0:02:37]} Kf6 {[%emt 0:01:12]} 28. Na5 {[%emt 0:00:22]} b5 {[%emt 0:00:32]} 29. Nc6 {[%emt 0:00:53]} Rc8 {[%emt 0:00:28]} 30. a4 {[%emt 0:01:06]} Rc7 {[%emt 0:00:31]} 31. axb5 {[%emt 0:00:25]} axb5 {[%emt 0:00:01]} 32. Ra1 {[%emt 0:00:24]} Bxc6 33. dxc6 {[%emt 0:00:04]} Re7 {[%emt 0:01:21]} 34. Ra6 {[%emt 0:01:46]} Kg7 {[%emt 0:00:32]} 35. Be2 {[%emt 0:01:19]} b4 {[%emt 0:00:14]} 36. Bc4 {[%emt 0:00:08]} Bc7 {[%emt 0:00:44]} 37. Ra8 {[%emt 0:01:15]} Kf6 {[%emt 0:00:11]} 38. Ra4 {[%emt 0:00:52]} Bd6 {[%emt 0:00:05]} 39. Ra6 {[%emt 0:00:35]} Bc7 {[%emt 0:00:16]} 40. Ra8 {[%emt 0:00:54]} Kg7 {[%emt 0:00:39]} 41. g3 {[%emt 0:30:56]} Kf6 {[%emt 0:05:42]} 42. Rf8+ {[%emt 0:00:00]} Kg7 {[%emt 0:00:56]} 43. Rg8+ {[%emt 0:00:00]} Kf6 {[%emt 0:00:08]} 44. Kg2 {[%emt 0:00:00]} Bd6 {[%emt 0:02:55]} 45. Rd8 {[%emt 0:00:00]} Bc7 {[%emt 0:01:42]} 46. Rg8 {[%emt 0:00:00]} Bd6 {[%emt 0:00:06]} 47. Kf3 {[%emt 0:00:00]} Rc7 {[%emt 0:04:45]} 48. Bb5 {[%emt 0:00:00]} Kf7 {[%emt 0:01:26]} 49. Ra8 {[%emt 0:00:00]} Re7 {[%emt 0:06:54]} 50. Rd8 {[%emt 0:00:00]} Bc5 {[%emt 0:00:58]} 51. Rd5 {[%emt 0:00:00]} Ba7 {[%emt 0:02:06]} 52. g4 {[%emt 0:00:00]} fxg4+ {[%emt 0:01:01]} 53. hxg4 {[%emt 0:00:00]} Kg7 {[%emt 0:00:58]} 54. Rd2 {[%emt 0:00:07]} Bb6 {[%emt 0:02:56]} 55. Bc4 {[%emt 0:00:33]} Bc7 {[%emt 0:00:51]} 56. Ra2 {[%emt 0:01:07]} Bd6 {[%emt 0:02:12]} 57. Bd5 {[%emt 0:00:46]} Bc7 {[%emt 0:00:51]} 58. Ra4 {[%emt 0:01:05]} Bd6 {[%emt 0:00:03]} 59. Be4 {[%emt 0:00:52]} Bc5 {[%emt 0:00:25]} 60. Ra2 {[%emt 0:00:41]} Bd6 {[%emt 0:01:05]} 61. Ke3 {[%emt 0:00:49]} h5 {[%emt 0:02:41]} 62. gxh5 {[%emt 0:01:21]} gxh5 {[%emt 0:00:00]} 63. f4 {[%emt 0:00:26]} Rf7 {[%emt 0:00:17]} 64. Rg2+ {[%emt 0:00:09]} Kf8 {[%emt 0:00:09]} 65. f5 {[%emt 0:00:35]} h4 {[%emt 0:00:07]} 66. Rg6 {[%emt 0:00:44]} Be5 {[%emt 0:02:37]} 67. Rh6 {[%emt 0:01:19]} Bf6 {[%emt 0:00:11]} 68. Kd3 {[%emt 0:00:22]} Bg5 {[%emt 0:00:55]} 69. Rg6 {[%emt 0:00:46]} Bf4 {[%emt 0:00:26]} 70. Rg4 {[%emt 0:00:56]} Bg3 {[%emt 0:00:20]} 71. Kc4 {[%emt 0:00:30]} Be1 {[%emt 0:00:08]} 72. Rg1 {[%emt 0:00:24]} Bc3 {[%emt 0:00:53]} 73. Rg5 {[%emt 0:01:00]} Bd2 {[%emt 0:00:31]} 74. Rh5 {[%emt 0:00:20]} Be1 {[%emt 0:00:02]} 75. Bd5 {[%emt 0:00:42]} 1-0

[Event "SVK ECo-C Extraliga 2018-19"]
[Site "Slovakia"]
[Date "2019.03.09"]
[Round "7.6"]
[White "Chovan, Milan"]
[Black "Turcel, Jozef"]
[Result "1-0"]
[ECO "D83"]
[WhiteElo "2336"]
[BlackElo "2030"]
[Annotator "NA"]
[PlyCount "45"]
[EventDate "2018.11.10"]
[EventType "team-tourn"]
[EventCountry "SVK"]
[SourceTitle "playchess.com"]
[Source "ChessBase"]
[SourceQuality "1"]
[WhiteTeam "Podhajska"]
[BlackTeam "Zilina"]
[TimeControl "40/5400+30:1800+30"]

1. d4 {[%emt 0:00:00]} Nf6 {[%emt 0:00:00]} 2. c4 {[%emt 0:00:00]} g6 {[%emt 0:00:01]} 3. Nc3 {[%emt 0:00:00]} d5 {[%emt 0:00:27]} 4. Bf4 {[%emt 0:00:03]} Bg7 {[%emt 0:03:20]} 5. e3 {[%emt 0:00:07]} O-O {[%emt 0:04:03]} 6. Rc1 {[%emt 0:00:20]} c5 {[%emt 0:05:12]} 7. dxc5 {[%emt 0:00:33]} Qa5 {[%emt 0:01:28]} 8. cxd5 {[%emt 0:00:25]} Rd8 {[%emt 0:15:24]} 9. Bc4 {[%emt 0:01:33]} Be6 {[%emt 0:20:40]} 10. e4 {[%emt 0:04:04]} Nxe4 {[%emt 0:03:18]} 11. Nge2 {[%emt 0:00:12]} Nxf2 {[%emt 0:07:12]} 12. Qb3 {[%emt 0:01:19]} Nxh1 {[%emt 0:04:46]} 13. dxe6 {[%emt 0:00:57]} Qxc5 {[%emt 0:08:15]} 14. exf7+ {[%emt 0:04:48]} Kf8 {[%emt 0:04:51]} 15. Ne4 {[%emt 0:07:32]} Qa5+ {[%emt 0:04:39]} 16. Kf1 {[%emt 0:06:43]} h6 {[%emt 0:01:55]} 17. Kg1 {[%emt 0:03:46]} Nc6 {[%emt 0:03:33]} 18. Kxh1 {[%emt 0:03:15]} Nd4 {[%emt 0:01:16]} 19. Qe3 {[%emt 0:12:35]} g5 {[%emt 0:02:23]} 20. Bxg5 {[%emt 0:07:13]} Nxe2 {[%emt 0:05:50]} 21. Bxe7+ {[%emt 0:03:02]} Kxe7 {[%emt 0:00:02]} 22. Nc5+ {[%emt 0:01:36]} Kd6 {[%emt 0:01:17]} 23. Nxb7+ {[%emt 0:04:55] Kd5} 1-0

[Event "SVK ECo-C Extraliga 2018-19"]
[Site "Slovakia"]
[Date "2019.03.09"]
[Round "7.6"]
[White "Zambor, Norbert"]
[Black "Jozefek, Michal"]
[Result "1-0"]
[ECO "B52"]
[WhiteElo "2260"]
[BlackElo "2201"]
[Annotator "NA"]
[PlyCount "283"]
[EventDate "2018.11.10"]
[EventType "team-tourn"]
[EventCountry "SVK"]
[SourceTitle "playchess.com"]
[Source "ChessBase"]
[SourceQuality "1"]
[WhiteTeam "Prakovce"]
[BlackTeam "Osuske"]
[TimeControl "40/5400+30:1800+30"]

1. e4 {[%emt 0:01:33]} c5 {[%emt 0:00:00]} 2. Nf3 {[%emt 0:00:13]} d6 {[%emt 0:00:00]} 3. Bb5+ {[%emt 0:00:52]} Bd7 {[%emt 0:00:27]} 4. Bxd7+ {[%emt 0:01:48]} Qxd7 {[%emt 0:00:02]} 5. O-O {[%emt 0:00:41]} Nc6 {[%emt 0:00:07]} 6. c3 {[%emt 0:00:06]} Nf6 {[%emt 0:04:31]} 7. d4 {[%emt 0:01:26]} cxd4 {[%emt 0:10:41]} 8. cxd4 {[%emt 0:04:17]} d5 {[%emt 0:02:20]} 9. e5 {[%emt 0:01:11]} Ne4 {[%emt 0:00:45]} 10. Ne1 {[%emt 0:02:19]} h6 {[%emt 0:06:38]} 11. Be3 {[%emt 0:06:02]} e6 {[%emt 0:05:22]} 12. f3 {[%emt 0:00:55]} Ng5 {[%emt 0:00:06]} 13. Nd3 {[%emt 0:08:04]} Be7 {[%emt 0:03:16]} 14. Nd2 $14 {[%emt 0:02:17]} Rc8 {[%emt 0:03:55]} 15. h4 {[%emt 0:06:45]} Nh7 {[%emt 0:00:04]} 16. f4 {[%emt 0:00:21]} Nf8 {[%emt 0:07:39]} 17. h5 {[%emt 0:02:53]} g6 {[%emt 0:14:41]} 18. Rf3 {[%emt 0:06:17]} Nb4 {[%emt 0:08:44]} 19. Ne1 {[%emt 0:08:05]} gxh5 {[%emt 0:06:44]} 20. Rh3 {[%emt 0:01:37]} h4 {[%emt 0:01:36]} 21. a3 {[%emt 0:02:09]} Nc6 {[%emt 0:00:06]} 22. b4 {[%emt 0:00:59]} h5 {[%emt 0:01:14]} 23. Nd3 {[%emt 0:01:45]} b6 {[%emt 0:02:31]} 24. f5 {[%emt 0:08:16]} exf5 {[%emt 0:00:55]} 25. Nf4 {[%emt 0:00:37]} Ne6 {[%emt 0:01:10]} 26. Nxh5 {[%emt 0:00:49]} f4 {[%emt 0:02:37]} 27. Bf2 {[%emt 0:06:15]} Qd8 {[%emt 0:02:27]} 28. Qg4 {[%emt 0:03:22]} Kf8 {[%emt 0:01:46]} 29. Nf3 {[%emt 0:00:34]} Rg8 {[%emt 0:04:57]} 30. Qf5 {[%emt 0:00:28]} Ng5 {[%emt 0:00:48]} 31. Nxg5 {[%emt 0:00:39]} Bxg5 {[%emt 0:00:13]} 32. Nxf4 {[%emt 0:05:11]} Ne7 {[%emt 0:04:52]} 33. Qg4 {[%emt 0:07:42]} Rc2 {[%emt 0:02:35]} 34. Rf1 {[%emt 0:00:45]} Qc8 {[%emt 0:00:49]} 35. Qxc8+ {[%emt 0:06:41]} Rxc8 {[%emt 0:00:34]} 36. Bxh4 {[%emt 0:00:17]} Bxf4 {[%emt 0:00:15]} 37. Rxf4 {[%emt 0:01:05]} Ng6 {[%emt 0:00:14]} 38. Rf2 {[%emt 0:02:25]} Rh8 {[%emt 0:00:49]} 39. Bg5 {[%emt 0:00:57]} Rxh3 {[%emt 0:00:44]} 40. gxh3 {[%emt 0:00:02]} Rc3 {[%emt 0:00:53]} 41. Kg2 {[%emt 0:31:14]} Kg8 {[%emt 0:31:14]} 42. Rf3 {[%emt 0:00:00]} Rc4 {[%emt 0:00:00]} 43. Rd3 {[%emt 0:00:00]} Nf8 {[%emt 0:00:00]} 44. Be3 {[%emt 0:00:00]} Ne6 {[%emt 0:00:00]} 45. h4 {[%emt 0:00:00]} Kh7 {[%emt 0:00:00]} 46. Kf3 {[%emt 0:00:00]} Rc2 {[%emt 0:00:00]} 47. Kg4 {[%emt 0:00:00]} Ng7 {[%emt 0:00:00]} 48. Kg5 {[%emt 0:00:00]} Rc6 {[%emt 0:00:00]} 49. b5 {[%emt 0:00:00]} Rg6+ {[%emt 0:00:00]} 50. Kf4 {[%emt 0:00:00]} Rg2 {[%emt 0:00:00]} 51. Rb3 {[%emt 0:01:50]} Kg6 {[%emt 0:00:00]} 52. Rb4 {[%emt 0:02:02]} Rh2 {[%emt 0:00:00]} 53. Kg3 {[%emt 0:00:51]} Rc2 {[%emt 0:00:00]} 54. Ra4 {[%emt 0:00:46]} Nf5+ {[%emt 0:01:19]} 55. Kf4 {[%emt 0:00:20]} Rh2 {[%emt 0:01:09]} 56. h5+ {[%emt 0:00:35]} Rxh5 {[%emt 0:00:16]} 57. Bf2 {[%emt 0:00:19]} Rh2 {[%emt 0:01:07]} 58. Kf3 {[%emt 0:00:28]} Rh3+ {[%emt 0:01:31]} 59. Ke2 {[%emt 0:00:08]} Rb3 {[%emt 0:00:58]} 60. Rxa7 {[%emt 0:00:05]} Rxb5 {[%emt 0:00:07]} 61. Rd7 {[%emt 0:01:37]} Rb2+ {[%emt 0:03:29]} 62. Kf3 {[%emt 0:00:25]} Rb3+ {[%emt 0:00:21]} 63. Ke2 {[%emt 0:00:42]} Rxa3 {[%emt 0:00:42]} 64. Rxd5 {[%emt 0:00:08]} f6 {[%emt 0:00:41]} 65. e6 {[%emt 0:00:36]} Ra8 {[%emt 0:00:20]} 66. Rb5 {[%emt 0:01:27]} Rd8 {[%emt 0:00:41]} 67. Kd3 {[%emt 0:00:15]} Rd6 {[%emt 0:00:10]} 68. d5 {[%emt 0:00:41]} Ne7 {[%emt 0:00:05]} 69. Kc4 {[%emt 0:00:46]} Nxd5 {[%emt 0:00:05]} 70. Rxd5 {[%emt 0:00:20]} Rxe6 {[%emt 0:00:01]} 71. Rb5 {[%emt 0:00:18]} Re4+ {[%emt 0:00:25]} 72. Kd3 {[%emt 0:00:07]} Rf4 {[%emt 0:00:10]} 73. Be3 {[%emt 0:00:18]} Rf1 {[%emt 0:00:12]} 74. Rxb6 {[%emt 0:00:08]} Rd1+ {[%emt 0:00:18]} 75. Bd2 {[%emt 0:00:23]} Rf1 {[%emt 0:01:02]} 76. Ke2 {[%emt 0:00:15]} Rf5 {[%emt 0:00:09]} 77. Bc3 {[%emt 0:00:06]} Kg5 {[%emt 0:00:40]} 78. Ke3 {[%emt 0:00:12]} Rf1 {[%emt 0:00:13]} 79. Rb8 {[%emt 0:00:12]} Rh1 {[%emt 0:00:48]} 80. Rf8 {[%emt 0:01:25]} Rh3+ {[%emt 0:00:33]} 81. Kd2 {[%emt 0:00:32]} Rh2+ {[%emt 0:00:17]} 82. Ke1 {[%emt 0:00:14]} f5 {[%emt 0:01:17]} 83. Be5 {[%emt 0:00:30]} Rh6 {[%emt 0:00:13]} 84. Kf2 {[%emt 0:00:15]} Ra6 {[%emt 0:00:22]} 85. Rg8+ {[%emt 0:00:14]} Rg6 {[%emt 0:00:07]} 86. Bf4+ {[%emt 0:02:01]} Kh5 {[%emt 0:00:07]} 87. Ra8 {[%emt 0:00:53]} Kg4 {[%emt 0:01:43]} 88. Ra4 {[%emt 0:00:05]} Re6 {[%emt 0:00:31]} 89. Be5+ {[%emt 0:00:47]} Kg5 {[%emt 0:00:04]} 90. Ra5 {[%emt 0:00:04]} Rb6 {[%emt 0:00:31]} 91. Ra8 {[%emt 0:00:06]} Re6 {[%emt 0:00:28]} 92. Ra5 {[%emt 0:00:55]} Rb6 {[%emt 0:00:04]} 93. Ra1 {[%emt 0:00:07]} Rb4 {[%emt 0:01:45]} 94. Ra8 {[%emt 0:00:30]} Rb6 {[%emt 0:02:38]} 95. Ra4 {[%emt 0:00:00]} Re6 {[%emt 0:00:00]} 96. Bf4+ {[%emt 0:00:00]} Kg4 {[%emt 0:00:00]} 97. Bh2+ {[%emt 0:00:00]} Re4 {[%emt 0:00:07]} 98. Ra7 {[%emt 0:00:13]} Kg5 {[%emt 0:00:23]} 99. Kf3 {[%emt 0:00:19]} Rb4 {[%emt 0:00:18]} 100. Rg7+ {[%emt 0:00:23]} Kf6 {[%emt 0:00:10]} 101. Rg8 {[%emt 0:00:35]} Rb3+ {[%emt 0:00:41]} 102. Kg2 {[%emt 0:00:12]} Rb2+ {[%emt 0:00:11]} 103. Kh3 {[%emt 0:00:11]} Rb4 {[%emt 0:00:24]} 104. Bg3 {[%emt 0:00:31]} Rg4 {[%emt 0:00:28]} 105. Rf8+ {[%emt 0:02:59]} Ke6 {[%emt 0:00:13]} 106. Bh2 {[%emt 0:01:17]} Ra4 {[%emt 0:00:18]} 107. Kg3 {[%emt 0:00:46]} Rb4 {[%emt 0:00:34]} 108. Bg1 {[%emt 0:00:41]} Rg4+ {[%emt 0:00:07]} 109. Kf2 {[%emt 0:00:06]} Ra4 {[%emt 0:01:09]} 110. Kf3 {[%emt 0:00:11]} Rb4 {[%emt 0:00:19]} 111. Be3 {[%emt 0:00:17]} Ra4 {[%emt 0:00:49]} 112. Bf4 {[%emt 0:01:48]} Ra3+ {[%emt 0:00:19]} 113. Be3 {[%emt 0:00:26]} Ra4 {[%emt 0:00:04]} 114. Re8+ {[%emt 0:00:26]} Kf6 {[%emt 0:00:48]} 115. Rd8 {[%emt 0:00:08]} Ke6 {[%emt 0:00:49]} 116. Rd1 {[%emt 0:00:32]} Re4 {[%emt 0:00:22]} 117. Bf4 {[%emt 0:00:30]} Ke7 {[%emt 0:00:57]} 118. Rd5 {[%emt 0:00:35]} Ke6 {[%emt 0:00:09]} 119. Rd2 {[%emt 0:00:37]} Ke7 {[%emt 0:00:08]} 120. Rh2 {[%emt 0:00:41]} Ra4 {[%emt 0:00:31]} 121. Rh5 {[%emt 0:00:26]} Kf6 {[%emt 0:00:23]} 122. Rh6+ {[%emt 0:00:04]} Kg7 {[%emt 0:00:20]} 123. Rd6 {[%emt 0:00:23]} Kf7 {[%emt 0:01:53]} 124. Be5 {[%emt 0:00:17]} Ke7 {[%emt 0:01:20]} 125. Rf6 {[%emt 0:00:16]} Ra5 {[%emt 0:00:36]} 126. Kf4 {[%emt 0:00:10]} Rb5 {[%emt 0:00:05]} 127. Kxf5 {[%emt 0:00:17]} Rb1 {[%emt 0:00:12]} 128. Rh6 {[%emt 0:00:17]} Rf1+ {[%emt 0:00:11]} 129. Bf4 {[%emt 0:00:05]} Kd7 {[%emt 0:00:16]} 130. Rd6+ {[%emt 0:00:39]} Ke7 {[%emt 0:00:10]} 131. Rc6 {[%emt 0:00:07]} Kd8 {[%emt 0:00:24]} 132. Ke5 {[%emt 0:00:50]} Kd7 {[%emt 0:00:21]} 133. Rd6+ {[%emt 0:00:08]} Kc7 {[%emt 0:00:16]} 134. Rd4 {[%emt 0:00:09]} Kc6 {[%emt 0:00:21]} 135. Rc4+ {[%emt 0:00:29]} Kd7 {[%emt 0:00:14]} 136. Kf5 {[%emt 0:00:34]} Re1 {[%emt 0:00:53]} 137. Rc7+ {[%emt 0:00:36]} Kd8 {[%emt 0:00:15]} 138. Rh7 {[%emt 0:00:26]} Kc8 {[%emt 0:01:00]} 139. Be5 {[%emt 0:01:33]} Rg1 {[%emt 0:00:22]} 140. Ke6 {[%emt 0:00:33]} Rg5 {[%emt 0:00:59]} 141. Rc7+ {[%emt 0:00:21]} Kd8 {[%emt 0:00:10]} 142. Rc5 {[%emt 0:00:21]} 1-0